Cogmind - Beta 14 *** ADVENTURER MODE // 2024.09.28 @ 19:14:06 Player: RustedShell Result: Destroyed by S-10 Pest with Light Assault Rifle Performance ------------- Evolutions (2) 1000 Regions Visited (6) 1200 Robots Destroyed (25) 125 Value Destroyed (526) 526 Prototype IDs (4) 80 Alien Tech Used (0) 0 Bonus (325) 325 TOTAL SCORE: 3256 Bonus ------- Follower Combat Kills 25 Aligned with FarCom 300 Cogmind --------- Core Integrity 0/550 Matter 191/300 Energy 100/100 System Corruption 0% Temperature Critical (772) Movement Core (700) Ox13 Location -8/Materials Parts ------- > --- POWER (2) -------- (None) > --- PROPULSION (2) --- (None) > --- UTILITY (4) ------ High-capacity Storage Unit Improved Terrain Scanner Improved Terrain Scan Processor > --- WEAPON (3) ------- (None) > --- INVENTORY (20) --- Armored Treads Heat Sink Medium Storage Unit Medium Storage Unit Large Storage Unit Large Storage Unit High-capacity Storage Unit Weight Redist. System Weight Redist. System Medium Armor Plating Medium Armor Plating Medium Armor Plating Hardened Light Armor Plating Small Laser Small Laser Field Laser Mining Claw Peak State ------------ > --- POWER ------------ Light Ion Engine Improved Ion Engine > --- PROPULSION ------- Wheel Compact Wheel > --- UTILITY ---------- High-capacity Storage Unit Large Battery Improved Terrain Scanner Improved Terrain Scan Processor > --- WEAPON ----------- Medium Laser Beam Rifle Field Laser > --- INVENTORY -------- Heat Sink Medium Storage Unit Medium Storage Unit Large Storage Unit Large Storage Unit Weight Redist. System Weight Redist. System Medium Armor Plating Medium Armor Plating Medium Armor Plating Hardened Light Armor Plating Small Laser Small Laser Field Laser Mining Claw [Rating: 21] Favorites ----------- Power Light Ion Engine Engine Light Ion Engine Propulsion Wheel Wheel Wheel Utility Large Storage Unit Device Heat Sink Storage Large Storage Unit Processor Improved Terrain Scan Processor Protection Hardened Light Armor Plating Weapon Field Laser Energy Gun Field Laser Ballistic Cannon Improved Light Cannon Slashing Weapon Mining Claw Build | -11 -10 -9 -9 -9 -8 -8 ------- Run | Yrd Mat Mat Min Exi Min Mat Slots Evolved 4 | . . 2 . . . 2 Power 1 | . . 1 . . . . Propulsion . | . . . . . . . Utility 2 | . . 1 . . . 1 Weapon 1 | . . . . . . 1 Parts Attached 40 | 7 6 16 . 1 . 10 Power 3 | 1 . 2 . . . . Engine 3 | 1 . 2 . . . . Core . | . . . . . . . Reactor . | . . . . . . . Propulsion 2 | 2 . . . . . . Treads . | . . . . . . . Leg . | . . . . . . . Wheel 2 | 2 . . . . . . Hover . | . . . . . . . Flight . | . . . . . . . Utility 22 | 2 4 8 . 1 . 7 Device 7 | 1 1 3 . . . 2 Storage 6 | 1 2 . . 1 . 2 Processor 2 | . . 1 . . . 1 Hackware . | . . . . . . . Protection 7 | . 1 4 . . . 2 Artifact . | . . . . . . . Weapon 13 | 2 2 6 . . . 3 Energy Gun 10 | 2 1 5 . . . 2 Energy Cannon . | . . . . . . . Ballistic Gun . | . . . . . . . Ballistic Cannon 1 | . . 1 . . . . Launcher . | . . . . . . . Special Weapon . | . . . . . . . Impact Weapon . | . . . . . . . Slashing Weapon 2 | . 1 . . . . 1 Piercing Weapon . | . . . . . . . Special Melee Weapon . | . . . . . . . Unidentified Prototypes . | . . . . . . . Parts Lost 8 | . . . . . . 8 Power 2 | . . . . . . 2 Propulsion 2 | . . . . . . 2 Utility 1 | . . . . . . 1 Weapon 3 | . . . . . . 3 Highest Loss Streak 8 | . . . . . . 8 To Critical Strikes . | . . . . . . . Average Slot Usage (%) 99 | . 100 100 100 100 100 95 Engine 19 | . 14 22 22 22 22 17 Wheel 22 | . 28 22 22 22 22 16 Device 9 | . 11 4 11 11 11 9 Storage 16 | . 14 11 11 20 22 18 Processor 1 | . . 3 . . . 5 Protection 4 | . 2 14 11 1 . 3 Energy Gun 23 | . 27 18 22 22 22 25 Peak Build Rating 21 | 9 10 18 16 16 15 21 Average Rating 13 | 6 7 15 16 15 15 19 On Entrance 11 | . 9 9 16 16 15 15 Naked Turns . | . . . . . . . Heaviest Build 67 | 14 33 45 42 42 40 67 Greatest Support 26 | 26 26 26 26 26 26 26 Greatest Overweight (x) 16 | 1 1 1 1 1 1 16 Average Overweight (x) 1 | . . 1 1 1 1 2 Largest Inventory Capacity 20 | 8 15 15 15 15 15 20 Average Capacity 15 | 7 13 15 15 15 15 19 Most Carried 17 | 1 13 15 15 15 15 17 Average Carried 11 | . 6 12 15 14 15 15 Final Capacity 20 | 8 15 15 15 15 15 20 Final Carried 17 | 1 12 15 15 15 15 17 Class Distribution -------------------- 85% | Mutant 14% | Skirmisher Dominant Class ---------------- Mutant | -10/Materials Mutant | -9/Materials Mutant | -9/Mines Mutant | -9/Exiles Mutant | -8/Mines Skirmisher | -8/Materials Resources | -11 -10 -9 -9 -9 -8 -8 ----------- Run | Yrd Mat Mat Min Exi Min Mat Matter Collected 562 | 270 50 137 . . . 105 Remotely . | . . . . . . . Salvage Created 749 | 168 180 145 104 . . 152 Parts 43 | 11 15 9 3 . . 5 Haulers Intercepted . | . . . . . . . Recyclers Shooed 1 | 1 . . . . . . Parts Field Recycled . | . . . . . . . Retrieved Matter . | . . . . . . . Parts Self-Destructed . | . . . . . . . Prevented . | . . . . . . . Kills | -11 -10 -9 -9 -9 -8 -8 ------- Run | Yrd Mat Mat Min Exi Min Mat Combat Hostiles Destroyed 15 | . 6 5 2 . . 2 Guns 13 | . 5 4 2 . . 2 Cannons 1 | . . 1 . . . . Classes Destroyed 9 | 2 3 1 1 . . 2 Worker 1 | . . . . . . 1 Tunneler 5 | 5 . . . . . . Recycler 1 | 1 . . . . . . Operator 1 | . . . . . . 1 Watcher 2 | . 1 . . . . 1 Swarmer 6 | . 3 3 . . . . Grunt 5 | . 3 . 1 . . 1 Brawler 1 | . . . 1 . . . Sentry 3 | . . 2 . . . 1 Best Kill Streak 5 | 5 3 3 2 . . 3 Combat Bots Only 3 | . 3 3 2 . . 1 Max Kills in Single Turn 1 | 1 1 1 1 . . 1 Gunslinging . | . . . . . . . Exploded . | . . . . . . . Melee . | . . . . . . . Uniques/NPCs Destroyed . | . . . . . . . Combat | -11 -10 -9 -9 -9 -8 -8 -------- Run | Yrd Mat Mat Min Exi Min Mat Hostile Shots Fired 103 | . 26 30 . . . 47 Missed 16 | . 6 5 . . . 5 Damage Taken 1257 | . 140 246 . . . 871 Core 701 | . 14 131 . . . 556 Absorbed by Shields . | . . . . . . . Ignored by Resistances 229 | . 44 53 . . . 132 Core Remaining (%) 87 | 100 94 . . . 67 . Volleys Fired 66 | 11 18 12 3 . . 22 Largest 3 | 2 2 2 2 . . 3 Hottest 169 | 90 90 126 119 . . 169 Shots Fired 143 | 22 35 23 6 . . 57 Gun 141 | 22 35 21 6 . . 57 Cannon 2 | . . 2 . . . . Launcher . | . . . . . . . Special . | . . . . . . . Kinetic 2 | . . 2 . . . . Thermal 141 | 22 35 21 6 . . 57 Explosive . | . . . . . . . Electromagnetic . | . . . . . . . Robot Hit Streak 14 | 11 13 11 14 . . 8 Robot Miss Streak 3 | 1 3 2 1 . . 2 Penetration Max . | . . . . . . . Secondary Targets 2 | . 1 1 . . . . Max Gunslinging Chain 1 | . 1 1 . . . . Shots Hit Robots 101 | 16 27 18 4 . . 36 Core Hits 36 | 7 9 6 3 . . 11 Critical Kills . | . . . . . . . Critical Parts Destroyed . | . . . . . . . Critical Strikes 11 | . 4 . . . . 7 Burn 11 | . 4 . . . . 7 Melee Attacks 8 | . 8 . . . . . Impact . | . . . . . . . Slashing 8 | . 8 . . . . . Piercing . | . . . . . . . Sneak Attacks . | . . . . . . . Combat Hostiles . | . . . . . . . Follow-up Attacks . | . . . . . . . Damage Inflicted 1460 | 193 322 289 63 . . 593 Guns 1414 | 193 322 243 63 . . 593 Cannons 46 | . . 46 . . . . Explosions . | . . . . . . . Melee . | . . . . . . . Ramming . | . . . . . . . Kinetic 46 | . . 46 . . . . Thermal 1414 | 193 322 243 63 . . 593 Explosive . | . . . . . . . Electromagnetic . | . . . . . . . Impact . | . . . . . . . Slashing . | . . . . . . . Piercing . | . . . . . . . Highest Corruption . | . . . . . . . Average Corruption . | . . . . . . . Corruption Purged . | . . . . . . . Corruption Blocked . | . . . . . . . Overload Shots . | . . . . . . . Overflow Damage . | . . . . . . . Projectiles . | . . . . . . . Explosions . | . . . . . . . Melee . | . . . . . . . Knockbacks . | . . . . . . . Impact . | . . . . . . . Kinetic . | . . . . . . . Secondary . | . . . . . . . Self-Inflicted Damage . | . . . . . . . Shots . | . . . . . . . Rammed . | . . . . . . . Targets Rammed . | . . . . . . . Kicked . | . . . . . . . Crushed . | . . . . . . . Highest Temperature 1081 | 210 210 570 102 . . 1081 Average Temperature 221 | 85 78 193 45 . . 419 Received Heat Transfer 390 | . 39 18 . . . 333 Effects 40 | . . 13 . . . 27 Shutdowns 10 | . . 3 . . . 7 Energy Bleed 4 | . . 1 . . . 3 Interference 4 | . . 1 . . . 3 Matter Decay 2 | . . . . . . 2 Short Circuit 2 | . . 2 . . . . Damage (minor) 5 | . . 1 . . . 4 Damage (major) 7 | . . 4 . . . 3 Damage (core) 6 | . . 1 . . . 5 Siege Activations . | . . . . . . . Robots Corrupted . | . . . . . . . Combat Hostiles . | . . . . . . . Parts Fried . | . . . . . . . Impact Corruptions . | . . . . . . . Robots Melted 1 | . 1 . . . . . Combat Hostiles 1 | . 1 . . . . . Parts Melted 11 | 1 4 . 2 . . 4 Heat Transferred 4373 | 520 1139 568 148 . . 1998 Parts Sabotaged . | . . . . . . . Parts Stolen . | . . . . . . . Parts Stripped . | . . . . . . . Power Chain Reactions . | . . . . . . . Alert | -11 -10 -9 -9 -9 -8 -8 ------- Run | Yrd Mat Mat Min Exi Min Mat Peak Influence 175 | 30 171 175 131 . . 107 Initial 57 | . 16 . 57 . . . Average 55 | 12 38 100 97 . . 34 Maximum Alert Level . | . . . . . . . Low Security (%) 100 | 100 100 100 100 . 100 100 Level 1 . | . . . . . . . Level 2 . | . . . . . . . Level 3 . | . . . . . . . Level 4 . | . . . . . . . Level 5 . | . . . . . . . High Security . | . . . . . . . Max Security . | . . . . . . . Squads Dispatched 2 | . . 1 . . . 1 Investigation . | . . . . . . . Extermination . | . . . . . . . Reinforcement 2 | . . 1 . . . 1 Assault . | . . . . . . . Garrison . | . . . . . . . Intercept . | . . . . . . . Searches Triggered . | . . . . . . . Construction Impeded . | . . . . . . . Haulers Reinforced . | . . . . . . . Active Scanning Responses . | . . . . . . . Cargo Convoy Interrupts . | . . . . . . . Stealth | -11 -10 -9 -9 -9 -8 -8 --------- Run | Yrd Mat Mat Min Exi Min Mat Distress Signals 2 | . . . . . . 2 Communications Jammed . | . . . . . . . Distress Signals . | . . . . . . . Times Spotted 33 | . 8 7 3 . . 15 Peak Tracking Total 10 | . 3 3 3 . . 10 Tactical Retreats 1 | . . . . . . 1 Traps | -11 -10 -9 -9 -9 -8 -8 ------- Run | Yrd Mat Mat Min Exi Min Mat Traps Triggered 2 | . . 2 . . . . Indirectly . | . . . . . . . Trap Hack Attempts . | . . . . . . . Triggered . | . . . . . . . Disarmed . | . . . . . . . Reprogrammed 6 | . 6 . . . . . Reused . | . . . . . . . Traps Extracted . | . . . . . . . Installed . | . . . . . . . Triggered . | . . . . . . . Machines | -11 -10 -9 -9 -9 -8 -8 ---------- Run | Yrd Mat Mat Min Exi Min Mat Machines Disabled . | . . . . . . . Max in Single Turn . | . . . . . . . Machines Repaired . | . . . . . . . Machines Dismantled . | . . . . . . . Machines Sabotaged . | . . . . . . . Overloaded Fab Kills . | . . . . . . . Hacking | -11 -10 -9 -9 -9 -8 -8 --------- Run | Yrd Mat Mat Min Exi Min Mat Machines Accessed 11 | . 4 3 . 2 . 2 Terminals 9 | . 4 3 . . . 2 Fabricators . | . . . . . . . Repair Stations . | . . . . . . . Recycling Units . | . . . . . . . Scanalyzers . | . . . . . . . Garrison Access . | . . . . . . . Total Hacks 42 | . 7 4 . 28 . 3 Successful 40 | . 6 3 . 28 . 3 Failed 2 | . 1 1 . . . . Catastrophic 1 | . 1 . . . . . Database Lockouts . | . . . . . . . Manual . | . . . . . . . Terminals 14 | . 7 4 . . . 3 Fabricators . | . . . . . . . Repair Stations . | . . . . . . . Recycling Units . | . . . . . . . Scanalyzers . | . . . . . . . Garrison Access . | . . . . . . . Terminal Hacks 40 | . 6 3 . 28 . 3 Record 28 | . . . . 28 . . Prototype ID Bank 3 | . 1 1 . . . 1 Emergency Access Points 3 | . 1 2 . . . . Alert Level 1 | . 1 . . . . . Locate Traps 3 | . 2 . . . . 1 Reprogram Traps 1 | . 1 . . . . . Dispatch Records 1 | . . . . . . 1 Fabricator Hacks . | . . . . . . . Repair Station Hacks . | . . . . . . . Recycling Unit Hacks . | . . . . . . . Scanalyzer . | . . . . . . . Garrison Access Hacks . | . . . . . . . Unauthorized Hacks . | . . . . . . . Terminals . | . . . . . . . Fabricators . | . . . . . . . Repair Stations . | . . . . . . . Recycling Units . | . . . . . . . Scanalyzers . | . . . . . . . Garrison Access . | . . . . . . . Data Cores Recovered 1 | . . . . . . 1 Used 1 | . . . . . . 1 Hacking Detections 3 | . 2 1 . . . . Full Trace Events . | . . . . . . . Feedback Events . | . . . . . . . Feedback Blocked . | . . . . . . . Robot Schematics Acquired . | . . . . . . . Robots Built . | . . . . . . . Authchips . | . . . . . . . Time . | . . . . . . . Total Robot Build Rating . | . . . . . . . Part Schematics Acquired . | . . . . . . . Parts Built . | . . . . . . . Authchips . | . . . . . . . Time . | . . . . . . . Total Part Build Rating . | . . . . . . . Parts Repaired . | . . . . . . . Time . | . . . . . . . Parts Recycled . | . . . . . . . Recycled Matter . | . . . . . . . Retrieved Matter . | . . . . . . . Retrieved Components . | . . . . . . . Parts Scanalyzed . | . . . . . . . Part Schematics Acquired . | . . . . . . . Parts Damaged . | . . . . . . . Bothacking | -11 -10 -9 -9 -9 -8 -8 ------------ Run | Yrd Mat Mat Min Exi Min Mat Used RIF Installer . | . . . . . . . Robots Hacked . | . . . . . . . Non-combat . | . . . . . . . Combat . | . . . . . . . Robot Hacks Applied . | . . . . . . . Relay Couplers Released . | . . . . . . . Fabnet Peak Effective % . | . . . . . . . Robots Rewired . | . . . . . . . Allies Hacked . | . . . . . . . Hacks Repelled . | . . . . . . . Allies | -11 -10 -9 -9 -9 -8 -8 -------- Run | Yrd Mat Mat Min Exi Min Mat Total Allies 2 | . . . 2 . . . Largest Group 2 | . . . 2 2 . . Highest-Rated Group 41 | . . . 41 41 . . Highest-Rated Ally 31 | . . . 31 31 . . Total Orders . | . . . . . . . Ally Attacks 6 | . . . 6 . . . Total Damage 81 | . . . 81 . . . Kills 1 | . . . 1 . . . Allies Corrupted . | . . . . . . . Allies Melted . | . . . . . . . Intel | -11 -10 -9 -9 -9 -8 -8 ------- Run | Yrd Mat Mat Min Exi Min Mat Robot Analysis Total . | . . . . . . . Derelict Logs Recovered . | . . . . . . . Drone Launches . | . . . . . . . Drone Recoveries . | . . . . . . . Exploration | -11 -10 -9 -9 -9 -8 -8 ------------- Run | Yrd Mat Mat Min Exi Min Mat Turns Passed 2102 | 120 500 311 189 635 38 309 Spaces Moved 1548 | 64 374 211 84 602 37 176 Core 3 | 1 . . . . . 2 Treads . | . . . . . . . Legs . | . . . . . . . Wheels 1545 | 63 374 211 84 602 37 174 Hover . | . . . . . . . Flight . | . . . . . . . Fastest Speed 50 | 50 90 105 105 105 105 105 Average Speed 105 | 88 100 105 105 105 105 125 Slowest Speed 850 | 95 105 105 105 105 105 850 Overloaded Moves . | . . . . . . . Propulsion Burnouts . | . . . . . . . Robots Hopped . | . . . . . . . Cave-ins Triggered . | . . . . . . . Exploration Rate (%) 34 | 4 70 27 12 92 19 20 Regions Visited 6 Branch Regions 3 Pre-discovered Areas 1 | . . . . 1 . . Known Exits Taken . | . . . . . . . Unknown Exits Taken 6 | 1 1 1 1 1 1 . Scrap Searched . | . . . . . . . Spaces Dug 5 | . 5 . . . . . Terrain Destroyed 5 | . 5 . . . . . Melee 5 | . 5 . . . . . Projectile . | . . . . . . . AOE . | . . . . . . . Terrain Rammed . | . . . . . . . Walls Destroyed . | . . . . . . . Machines Disabled . | . . . . . . . Actions | -11 -10 -9 -9 -9 -8 -8 --------- Run | Yrd Mat Mat Min Exi Min Mat Total 1862 | 102 444 277 178 604 36 221 Wait 165 | 19 26 21 92 . . 7 Move 1542 | 63 373 210 83 601 36 176 Hop . | . . . . . . . Pick Up 26 | 2 10 10 . 1 . 3 Fast Attach 8 | 6 1 . . . . 1 Attach 8 | 1 . 4 . . . 3 Detach 2 | . 1 . . . . 1 Swap 24 | . 5 12 . 1 . 6 Drop 13 | . 2 8 . 1 . 2 Fire 66 | 11 18 12 3 . . 22 Melee 8 | . 8 . . . . . Ram . | . . . . . . . Kick . | . . . . . . . Crush . | . . . . . . . Escape Stasis . | . . . . . . . Rewire . | . . . . . . . Trap . | . . . . . . . Miscellaneous . | . . . . . . . Route ------- -11/Scrapyard -10/Materials (discovered 3 exits: *Mat x3) -9/Materials -9/Mines -9/Exiles (discovered 2 exits: [*Min x2]) -8/Mines -8/Materials History --------- Turn | Location | Event 23 | -11/Scrapyard | Discovered new exit (range 15) 121 | -11/Scrapyard | Entered Materials 194 | -10/Materials | Discovered new exit (range 13) 315 | -10/Materials | Build established: Mutant 352 | -10/Materials | Discovered new exit (range 5) 515 | -10/Materials | Discovered new exit (range 7) 621 | -10/Materials | Entered another Materials area 621 | -9/Materials | Evolved 2 slots: Power x1, Utility x1 793 | -9/Materials | Discovered new exit (range 15) 932 | -9/Materials | Entered Mines 1048 | -9/Mines | Deemed a non-threat by the Exiles lab entrance 1048 | -9/Mines | Discovered new exit (range 5) 1121 | -9/Mines | Entered Exiles 1121 | -9/Exiles | Accompanied by 2 allies 1139 | -9/Exiles | Discovered new exit (range 14) 1151 | -9/Exiles | Led the pair of lost Derelicts to a safe place 1154 | -9/Exiles | Met 8R-AWN 1177 | -9/Exiles | Met EX-HEX 1247 | -9/Exiles | Met EX-DEC 1267 | -9/Exiles | Visited The Gauntlet 1403 | -9/Exiles | Learned location of Zion (-6) 1443 | -9/Exiles | Discovered new exit (range 12) 1535 | -9/Exiles | Met EX-BIN 1550 | -9/Exiles | Aligned with FarCom system 1551 | -9/Exiles | Given EX-Vault access code 1756 | -9/Exiles | Entered Mines 1792 | -8/Mines | Discovered new exit (range 3) 1794 | -8/Mines | Entered Materials 1794 | -8/Materials | Evolved 2 slots: Utility x1, Weapon x1 2083 | -8/Materials | Core integrity fell below 50% 2087 | -8/Materials | Build established: Skirmisher 2099 | -8/Materials | Core integrity fell below 20% 2103 | -8/Materials | Destroyed by S-10 Pest with Light Assault Rifle Last Messages --------------- 02087_ Field Laser destroyed. 02089_ Destroyed Imp. Heat Sink. 02089_ Imp. Ion Engine destroyed. 02089_ K-01 Serf collects debris. 02090_ Overheating: System interference. 02090_ Imp. Terrain Scan Processor temporarily disabled. 02090_ Beam Rifle temporarily disabled. 02091_ Overheating: Lrg. Battery damaged (-9). 02092_ Lgt. Ion Engine destroyed. 02093_ Overheating: Matter decay (-56). 02093_ K-01 Serf collects debris. 02095_ W-25 Informer distress signal alerts nearby ally. 02096_ Beam Rifle destroyed. 02097_ Overheating: Core damaged (-93). 02099_ K-01 Serf collects debris. 02100_ Overheating: Energy bleed (-33). 02101_ Lrg. Battery destroyed. 02103_ Overheating: Core damaged (-71). Map ----- +----------------------------------------------------+ | ????????????#???? ??? ??#???????????????????????? | | ???????????????? ???+? ? ??? ???????????????????? | | ?????????????????????????? ?? ??????????????????? | | ????????????#??? ? ??????? ??????????????????? | | ????????????#?#?????#? ?? ?? ""????????????????? | | ???????????#?? ?? ?#???????? ##?#?? ???????????? | | ??????#??##??#?? ?#? ? ? ####??#???????????? | | ?????????#???#?????? ?? ??? #???????????????? | | ???????????#?# ?????#??##?## # ??" ??????????? | | ??????#????#?????? ?###?#### # ?"????????????? | | ????????#????#???#?#####??## + ??????????????? | | ???????????#??#?############ # ?? ?????????? | | ??????#?????#???## "T" # # "T? ??????????? | | ??????#??????#???# # ^^ ^#?? ??????????? | | ????????#????#??## # ^^^ #??#????????????? | | ?????????????##?## """" # #######??#??????? | | ?????? ^?######### """" # / ? ??????? | | ?? ^^ + """" + #??## ?????????? | | ?????? ^?######### ] # #####? ?????????? | | ????????#????##### # #?### ?? ??????? | | ??????????#??###############%= ###?###?#???????? | | ?????????? #?# # *g #??####?#?#????? | | ????????? ?? ???# # #### ? ??????? | | ????????? ??"??## ! #g g #### ! ?????? | | ?????????? T"?##! +% + ??? ???? | | ???????? ? "?#?# @# #### ?? ?????? | | ?????????s ### = # #### ???? | | ???????????##??## w ! # #?##? ?? ? #?? | | ??????????s??ssss s ### ###?## ? ???#?? | | ????????????################# ##?###? ? ?? ???? | | ??????????????##?#?######?#?# #####?#?##?#?####? | | ??????????????############### ###############??? | | ????????????######??####?#### ##! + | | ????????????????##?#?#?##?## # ######### ? | | ????????????????#??##?###### # #??#?####?? | | ????????????????#???####?### # ######### ? | | ????????????????#?##?#?#?### # + | | ????????????????####?####### # # #####+#??? | | ???????????????????########### ### # #? ?????? | | ????????????????#??????##??### ########+## ?? ?##? | | ?????????????????#?##?###?#??# # # #??? | | ????????????????###???#?###### # # ???###? | | ??????????????????##?#??#?#??# # #? ?? ? | | ????????????????????#??#??##?# # #????#??? | | ???????????????##??#?#??###??# # #? ??? ? | | ?????????????????#????######## # #? ??? ?? | | ?????????????????#???#?# ## # # ? ????? | | ???????????????????????# ## # #???#???? | | ?????????????????#?????# ## #####/#####?#?? ??? | | ??????????????????????## ## #??##?? ?? | +----------------------------------------------------+ Best States ------------- Heat Dissipation 41 Energy Generation 17 Energy Capacity 490 Matter Stores 300 Matter Capacity 300 Sight Range 16 Robot Scan Range 14 Terrain Scan Range 16 Terrain Scan Density 110 Armor Coverage 300 Resistance: KI 20 Resistance: TH 20 Resistance: EX 20 Resistance: EM 20 Resistance: I 20 Resistance: S 20 Resistance: P 20 Evasion (%) 44 Offensive Hacking 10 Item Schematics ----------------- None Robot Schematics ------------------ None Fabricated ------------ Nothing Alien Tech Used ----------------- None Achievements -------------- None Challenges ------------ None Game ------ Seed FieldRingNanovents Manual? 0 Play Time 00:39:43 Cumulative 10.8 hours Start 2024.09.28 @ 18:31:03 End 2024.09.28 @ 19:14:06 Sessions 1 Manual Loads 0 Difficulty Adventurer Special Mode None Game No. 12 Rogue 0 Adventurer 11 Explorer 1 Win Type - Total 0 Types 0/0/0/0/0/0/0/0/0 Lore% 11 Gallery% 17 Achievement% 17 Wizard Run 0 Options --------- Layout 1 ASCII 0 Keyboard 0 Movement Mouse Keybinds 0 Fullscreen 1 Font 24/Swanston Map View 25x20 Zoom Use 99% Tactical HUD 1 Map Filters NONE Filters NONE Steam 1 RUN: e4562bb2-d444-4360-bdec-95db4130f84d